bitfinex/quotes_ETHUSD_20230117
["timestamp","ask_amount","ask_price","bid_price","bid_amount"]
[1673935654325,48.83736074,1568.6,1568.5,0.02269887]
[1673935654993,48.83736074,1568.6,1568.5,0.00569133]
[1673935656165,50.06036074,1568.6,1568.5,0.00569133]
[1673935657271,50.06036074,1568.6,1568.5,0.00069133]
[1673935657414,50.05748386,1568.6,1568.5,0.00069133]
[1673935657630,47.1972561,1568.6,1568.5,0.00069133]
[1673935658418,48.4212561,1568.6,1568.5,0.00069133]
[1673935659232,1.0,1568.5,1568.3,0.07632909]
[1673935659446,33.21532,1568.3,1568.2,0.00020608]
[1673935659627,47.7153828,1568.3,1568.2,0.00020608]
[1673935660049,43.98162482,1568.3,1568.2,0.00020608]
[1673935660309,52.90652482,1568.3,1568.2,0.00020608]
[1673935660517,56.6402828,1568.3,1568.2,0.00020608]
[1673935660737,63.80892827,1568.3,1568.2,0.00020608]
[1673935661570,63.87391502,1568.3,1568.2,0.00020608]
[1673935661790,63.8739032,1568.3,1568.2,0.00020608]
[1673935661937,63.87389324,1568.3,1568.2,0.00020608]
[1673935662303,61.49221547,1568.3,1568.2,0.00020608]
[1673935662916,63.87396453,1568.3,1568.2,0.00020608]
[1673935663122,61.49221547,1568.3,1568.2,0.00020608]
[1673935663378,63.87342989,1568.3,1568.2,0.00020608]
[1673935663739,7.71,1568.2,1568.1,0.0323051]
[1673935664104,37.24342546,1568.2,1568.1,0.0323051]
[1673935664684,39.62463988,1568.2,1568.1,0.0323051]
[1673935665121,37.24342546,1568.2,1568.1,0.0323051]
[1673935665579,37.71960943,1568.2,1568.1,0.0323051]
[1673935665791,39.62460471,1568.2,1568.1,0.0323051]
[1673935666014,37.71960943,1568.2,1568.1,0.0323051]
[1673935666175,7.71,1568.1,1568.0,0.11562641]
[1673935666367,22.43492477,1568.1,1568.0,0.11562641]
[1673935666576,35.83554395,1568.1,1568.0,0.11562641]
[1673935666992,55.21064395,1568.1,1568.0,0.11562641]
[1673935667216,57.59185837,1568.1,1568.0,0.11562641]
[1673935667435,55.20969062,1568.1,1568.0,0.11562641]
[1673935668849,55.22169062,1568.1,1568.0,0.11562641]
[1673935669047,55.27569062,1568.1,1568.0,0.11562641]
[1673935671109,56.07569062,1568.1,1568.0,0.11562641]
[1673935672456,58.45690504,1568.1,1568.0,0.11562641]
[1673935672714,58.45556195,1568.1,1568.0,0.11562641]
[1673935672983,63.41331993,1568.1,1568.0,0.11562641]
[1673935673245,61.03210551,1568.1,1568.0,0.11562641]
[1673935673613,57.29834753,1568.1,1568.0,0.11562641]
[1673935674251,57.29834753,1568.1,1567.8,0.12000922]
[1673935674252,0.08650817,1567.9,1567.8,0.12000922]
[1673935674464,17.88747235,1567.9,1567.8,0.12000922]
[1673935674713,46.99181063,1567.9,1567.8,0.12000922]
[1673935674930,47.61199206,1567.9,1567.8,0.12000922]
[1673935675196,65.55165378,1567.9,1567.8,0.12000922]
[1673935675362,69.50868007,1567.9,1567.8,0.12000922]
[1673935675573,69.50868381,1567.9,1567.8,0.12000922]
[1673935675730,68.08282324,1567.9,1567.8,0.12000922]
[1673935675938,0.12,1567.8,1567.7,0.12000922]
[1673935676204,14.637197,1567.8,1567.7,0.12000922]
[1673935676430,0.12,1567.7,1567.0,1.0879277]
[1673935676730,22.25779407,1567.3,1567.0,1.0879277]
[1673935676889,22.25415521,1567.3,1567.0,1.0879277]
[1673935677907,15.87376521,1567.3,1567.0,1.0879277]
[1673935678112,16.10376521,1567.3,1567.0,1.0879277]
[1673935678434,18.47454073,1567.3,1567.0,1.0879277]
[1673935678603,18.92734587,1567.3,1567.0,1.0879277]
[1673935679274,16.55657035,1567.3,1567.0,1.0879277]
[1673935679479,3.79579035,1567.3,1567.0,2.31454731]
[1673935679689,3.79579035,1567.3,1567.1,2.224]
[1673935679690,0.45280514,1567.3,1567.1,2.224]
[1673935679849,0.45280514,1567.3,1567.1,1.0]
[1673935680230,3.56942921,1567.3,1567.1,1.224]
[1673935680387,3.56942921,1567.3,1567.2,0.15442304]
[1673935680599,10.94478713,1567.3,1567.2,0.15442304]
[1673935681164,17.32517713,1567.3,1567.2,0.15442304]
[1673935681351,17.55517713,1567.3,1567.2,0.15442304]
[1673935688392,26.51617713,1567.3,1567.2,0.15442304]
[1673935689141,26.51617713,1567.3,1567.2,0.05831547]
[1673935689142,26.58217713,1567.3,1567.2,0.05831547]
[1673935690983,30.31593511,1567.3,1567.2,0.05831547]
[1673935691196,26.58217713,1567.3,1567.2,0.05831547]
[1673935692175,29.58217713,1567.3,1567.2,0.05831547]
[1673935692362,6.71,1567.1,1567.0,1.0979277]
[1673935692599,28.97025407,1567.1,1567.0,1.0979277]
[1673935694561,22.49025407,1567.1,1567.0,1.0979277]
[1673935694987,22.55625407,1567.1,1567.0,1.0879277]
[1673935695205,25.87870125,1567.1,1567.0,1.0879277]
[1673935696080,32.58870125,1567.1,1567.0,1.0879277]
[1673935698337,34.05270125,1567.1,1567.0,1.0879277]
[1673935698796,34.05270125,1567.1,1566.7,8.3103]
[1673935698797,7.797,1567.0,1566.7,0.066]
[1673935698987,3.11662407,1566.8,1566.4,0.22042304]
[1673935699205,15.88246407,1566.7,1566.4,0.15442304]
[1673935699501,3.34662407,1566.6,1566.4,0.15442304]
[1673935699747,3.11662407,1566.5,1566.4,0.15442304]
[1673935699972,3.34662407,1566.5,1566.4,0.15442304]
[1673935700334,0.23,1566.5,1566.4,0.15442304]
[1673935700557,0.23,1566.5,1566.4,1.61842304]
[1673935701027,0.23,1566.5,1566.4,8.00248304]
[1673935701192,0.23,1566.5,1566.4,14.47183359]
[1673935701564,0.066,1567.0,1566.4,17.47183359]
[1673935701779,3.11662407,1566.9,1566.7,1.45]
[1673935701926,3.11662407,1566.9,1566.7,1.46928684]
[1673935702617,0.066,1567.1,1566.8,15.69163]
[1673935702776,0.45280514,1567.3,1567.0,2.464]
[1673935702985,0.45280514,1567.3,1567.2,1.464]
[1673935703207,0.45280514,1567.3,1567.2,2.248521]
[1673935703623,0.9502823,1567.7,1567.2,2.248521]
[1673935703837,1.13832191,1567.7,1567.2,2.248521]
[1673935705090,2.13832191,1567.7,1567.2,2.248521]
[1673935705461,3.11662407,1567.6,1567.2,2.248521]
[1673935705670,3.34662407,1567.5,1567.2,8.629301]
[1673935705815,3.34662407,1567.5,1567.2,8.695301]
[1673935706587,3.34662407,1567.5,1567.2,7.91078]
[1673935706801,3.34662407,1567.5,1567.2,6.44678]
[1673935708189,4.14662407,1567.5,1567.2,6.44678]
[1673935711406,4.14662407,1567.5,1567.2,0.066]
[1673935711598,5.09690637,1567.5,1567.2,0.066]
[1673935711805,4.14662407,1567.5,1567.2,0.066]
[1673935712270,5.09690637,1567.5,1567.2,0.066]
[1673935713066,3.11662407,1567.4,1567.2,0.066]
[1673935713281,0.23,1567.3,1567.2,0.066]
[1673935713594,0.23,1567.3,1567.0,7.91132]
[1673935713843,0.23,1567.3,1567.0,1.53]
[1673935713844,3.11662407,1567.2,1567.0,1.53]
[1673935714119,0.23,1567.1,1567.0,0.066]
[1673935715181,0.56466241,1567.1,1567.0,0.066]
[1673935715389,3.68128648,1567.1,1567.0,0.066]
[1673935717067,4.68128648,1567.1,1567.0,0.066]
[1673935718350,11.06249648,1567.1,1567.0,0.066]
[1673935718560,17.44370648,1567.1,1567.0,0.066]
[1673935719068,17.45970648,1567.1,1567.0,0.05]
[1673935719277,1.0,1567.0,1566.5,22.85699577]
[1673935719544,3.44662407,1566.9,1566.6,1.38808621]
[1673935722865,3.44662407,1566.9,1566.6,2.34176989]
[1673935723077,3.34662407,1566.9,1566.5,13.29352848]
[1673935723306,3.34662407,1566.9,1566.6,2.32888349]
[1673935726752,0.23,1566.9,1566.7,1.464]
[1673935726970,0.066,1567.0,1566.8,1.464]
[1673935727223,0.066,1567.0,1566.8,7.84643]
[1673935728913,0.23,1566.9,1566.8,7.84643]
[1673935729069,0.23,1566.9,1566.8,9.22150661]
[1673935730954,0.23,1566.9,1566.8,10.87729664]
[1673935732642,0.866,1567.0,1566.8,19.67541032]
[1673935732851,0.866,1567.0,1566.9,10.67109661]
[1673935733175,1.03,1567.0,1566.9,11.73709661]
[1673935733417,0.8,1567.0,1566.9,18.11911661]
[1673935733631,0.7966297,1567.0,1566.9,24.78390232]
[1673935734743,0.066,1567.4,1567.0,1.09207301]
[1673935734953,0.066,1567.4,1567.3,1.45]
[1673935735217,0.066,1567.4,1567.3,14.21078]
[1673935739696,0.066,1567.4,1567.3,7.83039]
[1673935739920,0.066,1567.4,1567.3,9.397894]
[1673935742522,2.00718983,1567.7,1567.3,9.397894]
[1673935742523,1.9502823,1567.7,1567.3,15.844284]
[1673935742764,4.06690637,1567.7,1567.5,1.464]
[1673935742982,0.23,1567.6,1567.5,1.464]
[1673935749534,0.23,1567.6,1567.4,7.83996]
[1673935751191,0.23,1567.6,1567.4,1.46]
[1673935752347,3.68128648,1567.6,1567.3,4.73]
[1673935752560,3.68128648,1567.6,1567.3,3.206]
[1673935752874,4.68128648,1567.6,1567.3,3.206]
[1673935753898,3.11662407,1567.5,1567.3,3.206]
[1673935754108,0.23,1567.4,1567.3,3.206]
[1673935755134,0.23,1567.5,1567.3,3.2022764]
[1673935755344,0.38646624,1567.5,1567.3,3.2022764]
[1673935755782,0.23,1567.5,1567.3,3.2022764]
[1673935756000,0.23,1567.5,1567.3,9.5826264]
[1673935756744,0.23,1567.5,1567.3,17.4180164]
[1673935757150,0.23,1567.6,1567.3,17.4800164]
[1673935759135,0.23,1567.6,1567.4,1.46]
[1673935759341,0.23,1567.6,1567.4,14.2199]
[1673935759560,0.23,1567.6,1567.4,15.06126742]
[1673935760344,0.066,1567.7,1567.4,15.06126742]
[1673935765335,2.42229055,1567.8,1567.4,15.12554382]
[1673935765568,0.23,1567.7,1567.4,15.12554382]
[1673935766431,0.23,1567.7,1567.4,16.58954382]
[1673935766592,0.99686709,1567.8,1567.6,12.75834]
[1673935766806,0.04658479,1567.8,1567.6,19.13751]
[1673935771369,1.19863414,1567.8,1567.6,19.13751]
[1673935771584,0.99686709,1567.8,1567.6,19.13751]
[1673935771794,0.99686709,1567.8,1567.6,21.66324]
[1673935773841,0.04658479,1567.8,1567.6,21.66324]
[1673935774466,0.04658479,1567.8,1567.6,23.12724]
[1673935774683,0.04658479,1567.8,1567.7,5.45]
[1673935774913,0.04658479,1567.8,1567.7,18.20754]
[1673935775135,0.04658479,1567.8,1567.7,22.0713475]
[1673935775367,0.04658479,1567.8,1567.7,19.69427945]
[1673935778004,0.04289274,1567.8,1567.7,19.69427945]
[1673935778849,0.04289274,1567.8,1567.7,19.75855585]
[1673935780576,0.04289274,1567.8,1567.7,18.30855585]
[1673935780790,0.04289274,1567.8,1567.7,15.8218164]
[1673935781260,0.04289274,1567.8,1567.7,12.8218164]
[1673935790714,0.04289274,1567.8,1567.7,12.81947212]
[1673935795756,0.04289274,1567.8,1567.7,0.0642764]
[1673935795916,1.22989274,1567.8,1567.7,0.0642764]
[1673935796131,4.44438479,1567.8,1567.7,0.0642764]
[1673935796355,3.29243137,1567.8,1567.7,0.0642764]
[1673935796602,4.44439009,1567.8,1567.7,0.0642764]
[1673935797004,4.91953125,1567.8,1567.7,0.0642764]
[1673935797189,9.50015532,1567.8,1567.7,0.0642764]
[1673935797406,15.87851532,1567.8,1567.7,0.0642764]
[1673935797639,17.09505825,1567.8,1567.7,0.0642764]
[1673935797965,17.74139743,1567.8,1567.7,0.0642764]
[1673935798587,26.49546319,1567.8,1567.7,7.64e-05]
[1673935798754,1.0,1567.7,1567.3,3.2]
[1673935798969,2.74670741,1567.6,1567.3,3.2]
[1673935801210,1.451,1567.5,1567.3,3.2]
[1673935801421,0.23,1567.4,1567.3,3.2]
[1673935807260,4.80962407,1567.4,1567.3,3.2]
[1673935810091,3.34662407,1567.4,1567.3,3.2]
[1673935810739,3.82638648,1567.4,1567.3,3.2]
[1673935813318,5.28238648,1567.4,1567.3,3.2]
[1673935815004,2.16576241,1567.4,1567.3,3.2]
[1673935815217,0.70976241,1567.4,1567.3,3.2]
[1673935815540,0.23,1567.4,1567.3,3.2]
[1673935819258,1.694,1567.4,1567.3,3.2]
[1673935820309,1.694,1567.4,1567.3,3.19700184]
[1673935828341,4.81062407,1567.4,1567.3,3.19700184]
[1673935828696,19.69136066,1567.4,1567.3,3.19700184]
[1673935829308,22.57242178,1567.4,1567.3,3.19700184]
[1673935830655,21.61971437,1567.4,1567.3,3.19700184]
[1673935831133,22.57019592,1567.4,1567.3,3.19700184]
[1673935831753,21.68571437,1567.4,1567.3,3.19700184]
[1673935832136,20.25665325,1567.4,1567.3,3.19700184]
[1673935832346,21.6829456,1567.4,1567.3,3.19700184]
[1673935833702,22.15721786,1567.4,1567.3,3.19700184]
[1673935833902,23.58469719,1567.4,1567.3,3.19700184]
[1673935834115,22.15721786,1567.4,1567.3,3.19700184]
[1673935834383,23.58477409,1567.4,1567.3,3.19700184]
[1673935835642,24.53292362,1567.4,1567.3,3.19700184]
[1673935836007,22.15721786,1567.4,1567.3,3.19700184]
[1673935838700,23.58632101,1567.4,1567.3,3.19700184]
[1673935838854,13.8417664,1567.4,1567.3,3.19700184]
[1673935841153,15.74233101,1567.4,1567.3,3.19700184]
[1673935842576,15.74233101,1567.4,1567.3,3.19403751]
[1673935845686,14.31322786,1567.4,1567.3,3.19403751]
[1673935848264,16.68893362,1567.4,1567.3,3.19403751]
[1673935848626,14.31322786,1567.4,1567.3,3.19403751]
[1673935848835,7.93323786,1567.4,1567.3,3.19403751]
[1673935849045,6.96703819,1567.4,1567.3,3.19403751]
[1673935850045,5.51503819,1567.4,1567.3,3.19403751]
[1673935850725,6.51503819,1567.4,1567.3,3.19403751]
[1673935852087,21.21415934,1567.4,1567.3,3.19403751]
[1673935852301,5.52099785,1567.4,1567.3,3.19403751]
[1673935853865,12.79121862,1567.4,1567.3,3.19403751]
[1673935854076,23.01091438,1567.4,1567.3,3.19403751]
[1673935854300,23.26629238,1567.4,1567.3,3.19403751]
[1673935854721,21.35976811,1567.4,1567.3,3.19403751]
[1673935854956,16.88632348,1567.4,1567.3,3.19403751]
[1673935855328,14.26361772,1567.4,1567.3,3.19403751]
[1673935855947,16.63932348,1567.4,1567.3,3.19403751]
[1673935858048,21.11276811,1567.4,1567.3,3.19403751]
[1673935858255,23.01956028,1567.4,1567.3,3.19403751]
[1673935858469,2.00725547,1567.2,1567.1,0.066]
[1673935858739,22.87454338,1567.2,1567.1,0.066]
[1673935858891,22.87454338,1567.2,1566.9,0.14340074]
[1673935858892,22.94054338,1567.2,1566.9,0.14340074]
[1673935859103,5.93164845,1567.1,1566.9,0.14340074]
[1673935859437,4.06989402,1567.0,1566.9,0.14340074]
[1673935859624,4.29989402,1567.0,1566.9,0.14340074]
[1673935859976,5.32057833,1567.0,1566.9,0.14340074]
[1673935860782,6.32057833,1567.0,1566.9,0.14340074]
[1673935861467,12.70219833,1567.0,1566.9,0.14340074]
[1673935861690,14.13210325,1567.0,1566.9,0.14340074]
[1673935862060,13.91819833,1567.0,1566.9,0.14340074]
[1673935862252,15.34810325,1567.0,1566.9,0.14340074]
[1673935862723,13.91819833,1567.0,1566.9,0.14340074]
[1673935863233,15.34810325,1567.0,1566.9,0.14340074]
[1673935863441,13.91819833,1567.0,1566.9,0.14340074]
[1673935864265,7.53657833,1567.0,1566.9,0.14340074]
[1673935867667,4.36714599,1567.0,1566.9,1.25140074]
[1673935867825,3.34662407,1567.0,1566.9,1.25140074]
[1673935868612,3.34662407,1567.0,1566.9,3.34340074]
[1673935869001,1.01926995,1567.1,1566.9,3.34340074]
[1673935870299,0.23,1567.0,1566.9,3.34340074]
[1673935879761,4.42562407,1567.0,1566.9,3.34340074]
[1673935879983,5.14591641,1567.0,1566.9,3.33956215]
[1673935880123,3.35222817,1567.0,1566.9,3.33956215]
[1673935880540,4.30549812,1567.0,1566.9,3.33956215]
[1673935880961,3.35222817,1567.0,1566.9,3.33956215]
[1673935881966,4.30549812,1567.0,1566.9,3.33956215]
[1673935882154,3.35222817,1567.0,1566.9,3.33956215]
[1673935882347,5.71301864,1567.0,1566.9,3.33956215]
[1673935882813,4.75974869,1567.0,1566.9,3.33956215]
[1673935883437,5.71301864,1567.0,1566.9,3.33956215]
[1673935883797,5.91546438,1567.0,1566.8,0.00135942]
[1673935884011,4.27238919,1566.9,1566.8,0.00135942]
[1673935884217,5.97509706,1566.9,1566.8,0.00135942]
[1673935884474,6.97509706,1566.9,1566.8,0.00135942]
[1673935884801,13.35711706,1566.9,1566.8,0.00135942]
[1673935885548,19.73913706,1566.9,1566.8,0.00135942]
[1673935886738,19.80513706,1566.9,1566.8,0.01]
[1673935886951,18.80513706,1566.9,1566.5,1.14689046]
[1673935887202,0.23,1566.8,1566.6,1.49181847]
[1673935887374,0.23,1566.8,1566.6,0.11468905]
[1673935888423,0.23,1566.8,1566.5,4.14689046]
[1673935888629,0.23,1566.8,1566.6,1.37707834]
[1673935893103,0.23,1566.8,1566.5,1.14689046]
[1673935893417,0.23,1566.8,1566.6,1.37716003]
[1673935894153,0.22695849,1566.8,1566.6,1.37716003]
[1673935894475,0.22695849,1566.8,1566.5,1.14689046]
[1673935895784,0.22695849,1566.8,1566.6,1.37717588]
[1673935896150,0.22695849,1566.8,1566.5,1.14689046]
[1673935896366,0.22695849,1566.8,1566.6,1.37743902]
[1673935897151,3.11662407,1566.7,1566.6,1.37743902]
[1673935897423,17.26817699,1566.7,1566.5,0.19310712]
[1673935897738,18.24079277,1566.7,1566.5,0.19310712]
[1673935897883,1.309,1566.6,1566.5,0.19310712]
[1673935898301,17.19212407,1566.6,1566.5,0.19310712]
[1673935898550,20.42569177,1566.6,1566.5,0.19310712]
[1673935902742,0.193,1566.5,1566.0,1.244248]
[1673935903094,20.10834945,1566.1,1566.0,0.28905562]
[1673935903410,23.42785181,1566.1,1566.0,0.28905562]
[1673935903560,23.42785181,1566.1,1566.0,0.19905562]
[1673935903561,23.72385181,1566.1,1566.0,0.19905562]
[1673935903767,24.20010654,1566.1,1566.0,0.19905562]
[1673935904029,26.10457463,1566.1,1566.0,0.19905562]
[1673935904241,1.0,1566.0,1565.9,0.19310712]
[1673935904403,17.11800407,1566.0,1565.9,0.19310712]
[1673935905284,19.54700407,1566.0,1565.9,0.19310712]
[1673935906769,18.54700407,1566.0,1565.9,0.19310712]
[1673935909528,17.33100407,1566.0,1565.9,0.19310712]
[1673935909738,20.63261896,1566.0,1565.9,0.19310712]
[1673935911251,24.36108832,1566.0,1565.9,0.19310712]
[1673935911460,2.43610883,1565.9,1565.1,26.56689944]
[1673935911678,3.11662407,1565.3,1565.1,0.17857398]
[1673935911938,8.92509,1565.5,1565.1,1.28657398]
[1673935912095,9.73471407,1565.5,1565.2,0.1286574]
[1673935912347,9.50471407,1565.5,1565.1,0.17857398]
[1673935912544,10.72971407,1565.5,1565.1,0.17857398]
[1673935912823,9.50471407,1565.5,1565.1,0.17857398]
[1673935913015,6.38766,1565.6,1565.1,0.17857398]
[1673935913239,6.38692,1565.7,1565.1,1.17857398]
[1673935913398,3.11662407,1565.7,1565.2,0.1178574]
[1673935913627,0.17808832,1565.8,1565.5,1.218]
[1673935915553,0.23,1565.7,1565.5,1.218]
[1673935915868,6.61691,1565.7,1565.3,3.0]
[1673935916093,6.61691,1565.7,1565.2,0.1178574]
[1673935916094,3.11662407,1565.6,1565.2,3.0]
[1673935916243,0.23,1565.5,1565.2,5.0599774]
[1673935916629,3.34662407,1565.5,1565.2,5.0599774]
[1673935916764,16.12215407,1565.5,1565.2,3.0]
[1673935917279,3.11662407,1565.4,1565.1,7.75577398]
[1673935917491,3.11662407,1565.4,1565.1,0.17857398]
[1673935917754,6.61855,1565.3,1565.1,0.17857398]
[1673935917918,16.12372407,1565.3,1565.1,0.17857398]
[1673935919720,15.89452407,1565.2,1565.1,0.17857398]
[1673935919922,16.13652407,1565.2,1565.1,0.17857398]
[1673935920127,16.19052407,1565.2,1565.1,0.17857398]
[1673935920455,0.066,1565.2,1565.1,1.28657398]
[1673935920673,0.066,1565.2,1565.1,2.75357398]
[1673935920908,0.066,1565.2,1565.1,3.02893138]
[1673935921625,0.066,1565.2,1565.1,6.02893138]
[1673935923295,0.066,1565.2,1565.1,5.75357398]
[1673935924325,0.066,1565.2,1565.1,12.14293398]
[1673935924539,6.44410753,1565.7,1565.2,1.01206713]
[1673935924797,6.44410753,1565.7,1565.3,1.467]
[1673935924955,6.44410753,1565.7,1565.4,1.0]
[1673935925319,0.05690753,1565.7,1565.4,4.0]
[1673935925485,0.05690753,1565.7,1565.4,3.0]
[1673935926060,0.28690753,1565.7,1565.4,3.0]
[1673935926442,0.28690753,1565.7,1565.5,1.467]
[1673935927077,0.28690753,1565.7,1565.5,2.467]
[1673935927357,0.28690753,1565.7,1565.5,1.467]
[1673935927590,0.23,1565.7,1565.5,1.467]
[1673935928376,0.23,1565.7,1565.4,3.066]
[1673935928595,0.23,1565.7,1565.4,3.63797897]
[1673935930100,3.34662407,1565.7,1565.4,0.066]
[1673935930425,16.12052407,1565.7,1565.4,0.066]
[1673935931464,12.77546,1565.5,1565.4,0.066]
[1673935931636,16.12208407,1565.5,1565.4,0.066]
[1673935935955,9.73435407,1565.5,1565.4,1.174]
[1673935936202,9.73435407,1565.5,1565.4,0.066]
[1673935936415,11.34655748,1565.5,1565.4,0.066]
[1673935937115,11.35855748,1565.5,1565.2,3.21206713]
[1673935937320,0.23,1565.4,1565.2,3.21206713]
[1673935940516,6.61815,1565.4,1565.2,3.21206713]
[1673935940704,6.6237541,1565.4,1565.2,3.21206713]
[1673935940919,9.03778426,1565.4,1565.2,3.21206713]
[1673935941459,12.15440833,1565.4,1565.2,3.21206713]
[1673935942772,12.22040833,1565.4,1565.2,3.21206713]
[1673935946503,9.80637817,1565.4,1565.2,3.21206713]
[1673935949664,9.80345878,1565.4,1565.2,3.21206713]
[1673935954876,0.29868471,1565.4,1565.2,3.21206713]
[1673935956771,0.0716041,1565.4,1565.2,3.21206713]
[1673935957332,20.64084085,1565.8,1565.4,1.0]
[1673935957333,1.12796477,1565.8,1565.4,1.0]
[1673935957486,1.12796477,1565.8,1565.6,1.467]
[1673935957701,0.17808832,1565.8,1565.6,8.85419]
[1673935958117,0.17808832,1565.8,1565.6,7.85419]
[1673935958442,0.17808832,1565.8,1565.7,2.465]
[1673935958688,0.17808832,1565.8,1565.7,8.03793208]
[1673935958848,0.17808832,1565.8,1565.7,10.21477022]
[1673935959057,0.17808832,1565.8,1565.7,16.60168022]
[1673935959266,0.17808832,1565.8,1565.7,15.56174814]
[1673935959700,0.17808832,1565.8,1565.7,16.70596481]
[1673935959911,0.17808832,1565.8,1565.7,14.56174814]
[1673935961903,0.17808832,1565.8,1565.7,20.94865814]
[1673935962104,0.17808832,1565.8,1565.7,17.94865814]
[1673935965383,0.17808832,1565.8,1565.7,11.56174814]
[1673935965586,0.17808832,1565.8,1565.7,5.17483814]
[1673935965839,0.17808832,1565.8,1565.7,2.998]
[1673935966054,0.17808832,1565.8,1565.7,2.932]
[1673935966519,0.17808832,1565.8,1565.6,1.55150599]
[1673935966734,0.17808832,1565.8,1565.6,4.55150599]
[1673935968056,0.17808832,1565.8,1565.7,1.467]
[1673935968248,0.17808832,1565.8,1565.7,15.9734116]
[1673935973575,0.17808832,1565.8,1565.7,18.9734116]
[1673935974156,0.17808832,1565.8,1565.7,22.09003567]
[1673935974320,0.17808832,1565.8,1565.7,22.15603567]
[1673935979149,0.1749612,1565.8,1565.7,22.15603567]
[1673935980456,0.1749612,1565.8,1565.7,20.68903567]
[1673935981353,0.1749612,1565.8,1565.7,17.5724116]
[1673935982231,0.1749612,1565.8,1565.7,3.066]
[1673935982565,0.1749612,1565.8,1565.7,3.064]
[1673935985855,0.1749612,1565.8,1565.7,0.064]
[1673935987009,0.1749612,1565.8,1565.7,1.172]
[1673935987375,0.1749612,1565.8,1565.7,0.064]
[1673935988776,0.1749612,1565.8,1565.7,0.014]
[1673935990676,0.1749612,1565.8,1565.7,1.019]
[1673935990842,0.1749612,1565.8,1565.7,1.005]
[1673935991897,0.9847501,1566.0,1565.6,12.79014]
[1673935992109,0.09847501,1565.9,1565.6,12.79014]
[1673935992770,0.9847501,1566.0,1565.6,12.79014]
[1673935992982,0.03487365,1566.0,1565.6,12.79014]
[1673935993202,0.0059485,1565.9,1565.6,12.79014]
[1673935993729,0.0059485,1565.9,1565.6,14.24083205]
[1673935995065,1.20601158,1566.0,1565.6,14.24083205]
[1673935995398,5.31166051,1566.0,1565.6,14.24083205]
[1673935995733,3.45691884,1566.0,1565.7,1.1451262]
[1673935995886,1.20601158,1566.0,1565.7,7.5318762]
[1673935996097,1.20601158,1566.0,1565.7,6.38675]
[1673935997304,0.94987645,1565.9,1565.7,6.38675]
[1673935997524,1.38508108,1565.9,1565.7,6.38675]
[1673935997941,0.97601158,1566.0,1565.8,1.14610474]
[1673935998090,0.97601158,1566.0,1565.8,12.02007515]
[1673935998478,0.97601158,1566.0,1565.8,10.87397041]
[1673935998672,0.02613513,1566.0,1565.8,10.87397041]
[1673935999036,0.02613513,1566.0,1565.9,1.14609108]
[1673935999249,0.02613513,1566.0,1565.9,1.1460599]
[1673935999512,0.02613513,1566.0,1565.8,10.87397041]
[1673936000424,0.02613513,1566.0,1565.8,9.3864]
[1673936003095,0.97601158,1566.0,1565.8,9.3864]
[1673936004205,0.02613513,1566.0,1565.8,9.3864]
[1673936005497,0.97601158,1566.0,1565.8,9.3864]
[1673936006574,0.02613513,1566.0,1565.8,9.4064]
[1673936007499,0.97601158,1566.0,1565.8,9.4064]
[1673936014333,0.02613513,1566.0,1565.8,11.72176253]
[1673936021563,0.02613513,1566.0,1565.8,9.4064]
[1673936023095,0.97601158,1566.0,1565.8,9.4064]
[1673936024363,0.97601158,1566.0,1565.8,18.99291]
[1673936024679,0.02613513,1566.0,1565.8,18.99291]
[1673936025198,0.97601158,1566.0,1565.8,18.99291]
[1673936028614,0.97601158,1566.0,1565.8,12.6064]
[1673936031571,0.97801158,1566.0,1565.8,12.6044]
[1673936032652,0.97801158,1566.0,1565.8,3.21572705]
[1673936032653,0.94987645,1565.9,1565.8,3.21572705]
[1673936032902,1.38467392,1565.9,1565.8,3.21572705]
[1673936038883,2.80449277,1565.9,1565.8,3.202]
[1673936039048,5.44963522,1565.9,1565.8,3.202]
[1673936039259,5.46163522,1565.9,1565.8,3.202]
[1673936039477,15.59472206,1565.9,1565.8,3.202]
[1673936039724,15.12266694,1565.9,1565.8,3.202]
[1673936040059,17.50394057,1565.9,1565.8,3.202]
[1673936040210,23.89004057,1565.9,1565.8,3.202]
[1673936040424,21.98082206,1565.9,1565.8,3.202]
[1673936043265,23.88802808,1565.9,1565.8,3.202]
[1673936043806,22.03482206,1565.9,1565.8,3.2]
[1673936044017,23.94194264,1565.9,1565.8,3.2]
[1673936045254,21.56066901,1565.9,1565.8,3.2]
[1673936045940,22.99066946,1565.9,1565.8,3.2]
[1673936049425,21.08354888,1565.9,1565.8,3.2]
[1673936050886,26.76066961,1565.9,1565.8,3.2]
[1673936051194,23.02766901,1565.9,1565.8,3.2]
[1673936051414,23.94306115,1565.9,1565.8,3.2]
[1673936052667,31.14984091,1565.9,1565.8,0.66402228]
[1673936053564,50.60354091,1565.9,1565.8,0.66402228]
[1673936054242,19.16172,1565.7,1565.2,8.23582705]
[1673936054411,7.84481,1565.5,1565.2,8.23582705]
[1673936054625,17.34924407,1565.5,1565.2,0.02972705]
[1673936054834,0.23,1565.4,1565.2,0.02972705]
[1673936055468,13.00634,1565.4,1565.2,0.02972705]
[1673936055684,15.25741741,1565.4,1565.2,0.02972705]
[1673936055889,18.37404148,1565.4,1565.2,3.22972705]
[1673936056518,5.34562407,1565.3,1565.2,3.22972705]
[1673936056714,18.35272407,1565.3,1565.2,3.22972705]
[1673936057029,17.35272407,1565.3,1565.2,3.22972705]
[1673936057239,20.07482122,1565.3,1565.2,3.22972705]
[1673936057719,7.29772122,1565.3,1565.2,3.22972705]
[1673936057877,4.57562407,1565.3,1565.2,3.22972705]
[1673936058509,10.96417407,1565.3,1565.2,3.22972705]
[1673936061442,11.96417407,1565.3,1565.2,3.22972705]
[1673936061705,18.35272407,1565.3,1565.2,3.22972705]
[1673936062426,19.58172407,1565.3,1565.2,3.22972705]
[1673936062637,22.52672122,1565.3,1565.2,3.22972705]
[1673936067074,21.52672122,1565.3,1565.2,3.22972705]
[1673936068188,21.52672122,1565.3,1565.0,0.17264618]
[1673936068189,2.26836569,1565.1,1565.0,0.17264618]
[1673936068391,20.62170976,1565.1,1565.0,0.17264618]
[1673936068667,23.98812059,1565.1,1565.0,0.17264618]
[1673936070011,22.82512059,1565.1,1565.0,0.17264618]
[1673936071565,16.43576059,1565.1,1565.0,0.17264618]
[1673936071831,3.79088833,1565.1,1565.0,0.17264618]
[1673936072029,2.56188833,1565.1,1565.0,0.17264618]
[1673936075026,2.49588833,1565.1,1565.0,0.17264618]